[Event "Early-Titled-Tuesday-Blitz-February-20-2024"]
[Site "Chess.com"]
[Date "2024.02.20"]
[Round "4"]
[White "aldebaran52"]
[Black "Attacker_2006"]
[Result "1-0"]
[WhiteElo "2191"]
[BlackElo "2379"]
[TimeControl "180+1"]
[EndTime "8:39:38 PST"]
[Termination "aldebaran52 won by checkmate"]

1. d4 {[%clk 0:02:59.7]} 1... d5 {[%clk 0:02:59.6]} 2. Nf3 {[%clk 0:02:59.2]}
2... Nf6 {[%clk 0:02:59.3]} 3. g3 {[%clk 0:02:59.7]} 3... Bf5 {[%clk 0:02:58.1]}
4. Bg2 {[%clk 0:02:59.8]} 4... c6 {[%clk 0:02:58.2]} 5. O-O {[%clk 0:03:00]}
5... e6 {[%clk 0:02:57.3]} 6. c4 {[%clk 0:03:00.6]} 6... Bd6 {[%clk 0:02:56.5]}
7. Qb3 {[%clk 0:02:59.5]} 7... Qc7 {[%clk 0:02:47]} 8. c5 {[%clk 0:02:57.2]}
8... Be7 {[%clk 0:02:46.7]} 9. Bf4 {[%clk 0:02:57.4]} 9... Qc8 {[%clk
0:02:46.5]} 10. Nc3 {[%clk 0:02:50.5]} 10... Nbd7 {[%clk 0:02:39.7]} 11. Nh4
{[%clk 0:02:45]} 11... Bg6 {[%clk 0:02:35.5]} 12. Nxg6 {[%clk 0:02:39.6]} 12...
hxg6 {[%clk 0:02:36.4]} 13. e4 {[%clk 0:02:37.7]} 13... b6 {[%clk 0:01:58.8]}
14. e5 {[%clk 0:02:36.8]} 14... Nh5 {[%clk 0:01:58.7]} 15. cxb6 {[%clk
0:02:35.1]} 15... Nxb6 {[%clk 0:01:52.2]} 16. Be3 {[%clk 0:02:34.8]} 16... Rb8
{[%clk 0:01:23.2]} 17. Qc2 {[%clk 0:02:20.8]} 17... Nc4 {[%clk 0:01:21.3]} 18.
b3 {[%clk 0:02:07.6]} 18... Na3 {[%clk 0:00:59.5]} 19. Qd3 {[%clk 0:02:07.7]}
19... g5 {[%clk 0:00:35.5]} 20. Rac1 {[%clk 0:01:53]} 20... g6 {[%clk
0:00:28.1]} 21. f4 {[%clk 0:01:26]} 21... gxf4 {[%clk 0:00:25]} 22. Bxf4 {[%clk
0:01:25.6]} 22... Nxf4 {[%clk 0:00:20]} 23. gxf4 {[%clk 0:01:22.6]} 23... Kf8
{[%clk 0:00:17.9]} 24. f5 {[%clk 0:01:10.3]} 24... gxf5 {[%clk 0:00:15.8]} 25.
Nxd5 {[%clk 0:01:11]} 25... exd5 {[%clk 0:00:14.6]} 26. Bxd5 {[%clk 0:01:11.7]}
26... Qd7 {[%clk 0:00:12.6]} 27. Bxc6 {[%clk 0:01:09]} 27... Qe6 {[%clk
0:00:09.6]} 28. Rxf5 {[%clk 0:01:01.6]} 28... Rg8+ {[%clk 0:00:07.8]} 29. Kh1
{[%clk 0:00:58.8]} 29... Qg6 {[%clk 0:00:07]} 30. Qf3 {[%clk 0:00:51]} 30... Rb6
{[%clk 0:00:04.5]} 31. Bd5 {[%clk 0:00:47.6]} 31... Rg7 {[%clk 0:00:04.2]} 32.
Rc8+ {[%clk 0:00:40.7]} 32... Bd8 {[%clk 0:00:03.9]} 33. Rxd8+ {[%clk
0:00:41.1]} 33... Ke7 {[%clk 0:00:04.8]} 34. Rxf7+ {[%clk 0:00:25.6]} 34... Rxf7
{[%clk 0:00:02.5]} 35. Qxf7+ {[%clk 0:00:21.6]} 35... Kxd8 {[%clk 0:00:02.7]}
36. Qf8+ {[%clk 0:00:12.8]} 36... Kc7 {[%clk 0:00:02.5]} 37. Qc5+ {[%clk
0:00:12.4]} 37... Kb8 {[%clk 0:00:02.1]} 38. Qf8+ {[%clk 0:00:11.8]} 38... Kc7
{[%clk 0:00:01.7]} 39. Qe7+ {[%clk 0:00:11.1]} 39... Kb8 {[%clk 0:00:02.2]} 40.
Qd8# {[%clk 0:00:10.9]} 1-0

[Event "Early-Titled-Tuesday-Blitz-February-20-2024"]
[Site "Chess.com"]
[Date "2024.02.20"]
[Round "4"]
[White "nindjaxx8"]
[Black "Ariadna_Atreides"]
[Result "0-1"]
[WhiteElo "2617"]
[BlackElo "2195"]
[TimeControl "180+1"]
[EndTime "8:39:41 PST"]
[Termination "Ariadna_Atreides won by checkmate"]

1. d4 {[%clk 0:02:54.4]} 1... Nf6 {[%clk 0:02:59.3]} 2. c4 {[%clk 0:02:53.6]}
2... e6 {[%clk 0:02:59.7]} 3. Nc3 {[%clk 0:02:53]} 3... Bb4 {[%clk 0:03:00]} 4.
Qc2 {[%clk 0:02:51.5]} 4... O-O {[%clk 0:02:58]} 5. a3 {[%clk 0:02:48.6]} 5...
Bxc3+ {[%clk 0:02:57.4]} 6. bxc3 {[%clk 0:02:49.5]} 6... c5 {[%clk 0:02:54.6]}
7. Nf3 {[%clk 0:02:48]} 7... b6 {[%clk 0:02:51.3]} 8. Bg5 {[%clk 0:02:46.7]}
8... h6 {[%clk 0:02:49.9]} 9. Bh4 {[%clk 0:02:47]} 9... Bb7 {[%clk 0:02:49.1]}
10. e3 {[%clk 0:02:46.6]} 10... d6 {[%clk 0:02:45.5]} 11. Be2 {[%clk 0:02:43.5]}
11... Nbd7 {[%clk 0:02:45.3]} 12. O-O {[%clk 0:02:41.6]} 12... Qc7 {[%clk
0:02:44.5]} 13. Bg3 {[%clk 0:02:37.6]} 13... Ne4 {[%clk 0:02:38.3]} 14. Rad1
{[%clk 0:02:36.7]} 14... Nxg3 {[%clk 0:02:35.7]} 15. hxg3 {[%clk 0:02:36.6]}
15... Nf6 {[%clk 0:02:33.8]} 16. Qb2 {[%clk 0:02:24.8]} 16... e5 {[%clk
0:02:15.5]} 17. dxe5 {[%clk 0:02:21.4]} 17... dxe5 {[%clk 0:02:15]} 18. Nh4
{[%clk 0:02:21.8]} 18... Qc6 {[%clk 0:02:01.6]} 19. Bf3 {[%clk 0:02:18.8]} 19...
e4 {[%clk 0:01:57.8]} 20. Be2 {[%clk 0:02:12]} 20... Qe6 {[%clk 0:01:58.3]} 21.
g4 {[%clk 0:01:57.1]} 21... Nxg4 {[%clk 0:01:51.4]} 22. Bxg4 {[%clk 0:01:58]}
22... Qxg4 {[%clk 0:01:51.2]} 23. g3 {[%clk 0:01:58.7]} 23... g5 {[%clk
0:01:39.9]} 24. Ng2 {[%clk 0:01:58.3]} 24... Qh3 {[%clk 0:01:22.6]} 25. Rd6
{[%clk 0:01:52]} 25... Bc8 {[%clk 0:01:10.8]} 26. Qc2 {[%clk 0:01:32.2]} 26...
Bf5 {[%clk 0:01:04]} 27. Rd5 {[%clk 0:01:15.3]} 27... Rae8 {[%clk 0:00:47.8]}
28. Rxf5 {[%clk 0:00:28.2]} 28... Qxf5 {[%clk 0:00:46.9]} 29. Qe2 {[%clk
0:00:28.8]} 29... Rd8 {[%clk 0:00:41.5]} 30. Qh5 {[%clk 0:00:24.6]} 30... Qg6
{[%clk 0:00:39.9]} 31. Qe2 {[%clk 0:00:22.9]} 31... Rd3 {[%clk 0:00:39.5]} 32.
a4 {[%clk 0:00:18.3]} 32... Rxc3 {[%clk 0:00:38.5]} 33. a5 {[%clk 0:00:18.3]}
33... Rd8 {[%clk 0:00:37.1]} 34. axb6 {[%clk 0:00:17.8]} 34... axb6 {[%clk
0:00:38]} 35. Qa2 {[%clk 0:00:17.2]} 35... Rcd3 {[%clk 0:00:36.3]} 36. Qa1
{[%clk 0:00:13.6]} 36... Qd6 {[%clk 0:00:33.9]} 37. Qb2 {[%clk 0:00:08.5]} 37...
Rd1 {[%clk 0:00:31.5]} 38. Re1 {[%clk 0:00:02.2]} 38... Rxe1+ {[%clk 0:00:31.1]}
39. Nxe1 {[%clk 0:00:03.1]} 39... Qd2 {[%clk 0:00:29.4]} 40. Qa1 {[%clk
0:00:02]} 40... Qe2 {[%clk 0:00:26.9]} 41. Qf6 {[%clk 0:00:01.4]} 41... Qxe1+
{[%clk 0:00:25.8]} 42. Kg2 {[%clk 0:00:01.9]} 42... Qd1 {[%clk 0:00:22.7]} 43.
Qxh6 {[%clk 0:00:01.8]} 43... Qf3+ {[%clk 0:00:22.1]} 44. Kh2 {[%clk 0:00:01.8]}
44... Qxf2+ {[%clk 0:00:19.4]} 45. Kh3 {[%clk 0:00:02.4]} 45... Qf5+ {[%clk
0:00:19.1]} 46. g4 {[%clk 0:00:02]} 46... Qf3+ {[%clk 0:00:18.3]} 47. Kh2 {[%clk
0:00:02.9]} 47... Rd2+ {[%clk 0:00:17.7]} 48. Kg1 {[%clk 0:00:02.6]} 48... Qg2#
{[%clk 0:00:17.9]} 0-1

[Event "Early-Titled-Tuesday-Blitz-February-20-2024"]
[Site "Chess.com"]
[Date "2024.02.20"]
[Round "4"]
[White "sofaceindisguise"]
[Black "kpio91"]
[Result "1-0"]
[WhiteElo "2675"]
[BlackElo "2878"]
[TimeControl "180+1"]
[EndTime "8:39:44 PST"]
[Termination "sofaceindisguise won on time"]

1. c4 {[%clk 0:02:59.6]} 1... d6 {[%clk 0:02:58.8]} 2. g3 {[%clk 0:03:00.3]}
2... e5 {[%clk 0:02:51.9]} 3. Bg2 {[%clk 0:03:00.6]} 3... f5 {[%clk 0:02:52]} 4.
Nc3 {[%clk 0:02:59.8]} 4... Nf6 {[%clk 0:02:51.8]} 5. e3 {[%clk 0:03:00.5]} 5...
Be7 {[%clk 0:02:50.9]} 6. Nge2 {[%clk 0:03:01.1]} 6... O-O {[%clk 0:02:51.1]} 7.
O-O {[%clk 0:03:01.8]} 7... c6 {[%clk 0:02:51.3]} 8. b4 {[%clk 0:03:02.1]} 8...
Be6 {[%clk 0:02:51.3]} 9. d3 {[%clk 0:03:01.5]} 9... Nbd7 {[%clk 0:02:51.4]} 10.
b5 {[%clk 0:02:56.3]} 10... Qc7 {[%clk 0:02:49.9]} 11. bxc6 {[%clk 0:02:56.3]}
11... bxc6 {[%clk 0:02:49.8]} 12. e4 {[%clk 0:02:48.3]} 12... fxe4 {[%clk
0:02:36.6]} 13. Nxe4 {[%clk 0:02:48.1]} 13... Nxe4 {[%clk 0:02:35.6]} 14. Bxe4
{[%clk 0:02:48.6]} 14... Nc5 {[%clk 0:02:36.3]} 15. Bg2 {[%clk 0:02:47.1]} 15...
Bg4 {[%clk 0:02:31.8]} 16. Be3 {[%clk 0:02:46.9]} 16... Ne6 {[%clk 0:02:30.9]}
17. Qd2 {[%clk 0:02:39.7]} 17... Rad8 {[%clk 0:02:25.1]} 18. Rab1 {[%clk
0:02:32]} 18... h6 {[%clk 0:02:22]} 19. Rb3 {[%clk 0:02:14.5]} 19... Ng5 {[%clk
0:02:04.9]} 20. Bxg5 {[%clk 0:02:02.9]} 20... Bxg5 {[%clk 0:02:02.6]} 21. Qc2
{[%clk 0:02:00.9]} 21... h5 {[%clk 0:01:42.5]} 22. h4 {[%clk 0:01:58.9]} 22...
Bh6 {[%clk 0:01:39.7]} 23. Rfb1 {[%clk 0:01:56.1]} 23... Qf7 {[%clk 0:01:39.2]}
24. Nc3 {[%clk 0:01:56.2]} 24... Bf3 {[%clk 0:01:16.1]} 25. Rb7 {[%clk
0:01:52.6]} 25... Qf5 {[%clk 0:01:15.3]} 26. Bxf3 {[%clk 0:01:47.9]} 26... Qxf3
{[%clk 0:01:15]} 27. Qe2 {[%clk 0:01:40.8]} 27... Qxe2 {[%clk 0:01:10.6]} 28.
Nxe2 {[%clk 0:01:41.7]} 28... Rf3 {[%clk 0:01:10.7]} 29. Rb8 {[%clk 0:01:40.1]}
29... Rxb8 {[%clk 0:01:00]} 30. Rxb8+ {[%clk 0:01:41]} 30... Kh7 {[%clk
0:01:00.3]} 31. Rb3 {[%clk 0:01:41.9]} 31... Rf7 {[%clk 0:00:51.9]} 32. Kg2
{[%clk 0:01:41.6]} 32... Rc7 {[%clk 0:00:51.5]} 33. Nc3 {[%clk 0:01:41.1]} 33...
Kg6 {[%clk 0:00:46.9]} 34. Ra3 {[%clk 0:01:34.9]} 34... Kf5 {[%clk 0:00:45.8]}
35. Ra6 {[%clk 0:01:35.2]} 35... Ke6 {[%clk 0:00:36.5]} 36. Ne4 {[%clk
0:01:35.1]} 36... g6 {[%clk 0:00:35.8]} 37. Kh3 {[%clk 0:01:21.6]} 37... Bf8
{[%clk 0:00:35.2]} 38. f3 {[%clk 0:01:21.1]} 38... Be7 {[%clk 0:00:35.1]} 39. g4
{[%clk 0:01:21.1]} 39... Kf7 {[%clk 0:00:21.2]} 40. c5 {[%clk 0:01:03.5]} 40...
d5 {[%clk 0:00:16.4]} 41. Nd6+ {[%clk 0:01:03.9]} 41... Ke6 {[%clk 0:00:07.9]}
42. gxh5 {[%clk 0:01:04.3]} 42... gxh5 {[%clk 0:00:07]} 43. Ne8 {[%clk
0:01:04.1]} 43... Rb7 {[%clk 0:00:04.7]} 44. Ng7+ {[%clk 0:00:58.9]} 44... Kd7
{[%clk 0:00:05]} 45. Nxh5 {[%clk 0:00:58.6]} 45... Bxc5 {[%clk 0:00:05.3]} 46.
Nf6+ {[%clk 0:00:57.6]} 46... Kc7 {[%clk 0:00:05.3]} 47. h5 {[%clk 0:00:52.2]}
47... Rb1 {[%clk 0:00:04.6]} 48. Kg4 {[%clk 0:00:50.5]} 48... Rg1+ {[%clk
0:00:04.6]} 49. Kf5 {[%clk 0:00:51]} 49... Bb6 {[%clk 0:00:04.6]} 50. Ra4 {[%clk
0:00:48.4]} 50... Bd4 {[%clk 0:00:03.9]} 51. Rxd4 {[%clk 0:00:44]} 51... exd4
{[%clk 0:00:03.5]} 52. h6 {[%clk 0:00:44.9]} 52... Kd6 {[%clk 0:00:03]} 53. h7
{[%clk 0:00:45]} 53... Rh1 {[%clk 0:00:03.4]} 54. Kg6 {[%clk 0:00:45.2]} 54...
Ke6 {[%clk 0:00:02.9]} 55. Nh5 {[%clk 0:00:44.8]} 1-0

[Event "Early-Titled-Tuesday-Blitz-February-20-2024"]
[Site "Chess.com"]
[Date "2024.02.20"]
[Round "4"]
[White "Dinosaurio_1975"]
[Black "platy3"]
[Result "0-1"]
[WhiteElo "2610"]
[BlackElo "2957"]
[TimeControl "180+1"]
[EndTime "8:39:44 PST"]
[Termination "platy3 won by resignation"]

1. e4 {[%clk 0:03:00.9]} 1... c5 {[%clk 0:02:57.5]} 2. Nf3 {[%clk 0:03:00.5]}
2... e6 {[%clk 0:02:58.3]} 3. g3 {[%clk 0:02:58.6]} 3... Nc6 {[%clk 0:02:55.6]}
4. Bg2 {[%clk 0:02:58.4]} 4... Nf6 {[%clk 0:02:56.1]} 5. Qe2 {[%clk 0:02:57.9]}
5... e5 {[%clk 0:02:56.3]} 6. O-O {[%clk 0:02:55.9]} 6... d6 {[%clk 0:02:56.2]}
7. c3 {[%clk 0:02:55.6]} 7... Be7 {[%clk 0:02:56.2]} 8. Rd1 {[%clk 0:02:49.6]}
8... Bg4 {[%clk 0:02:50]} 9. h3 {[%clk 0:02:49]} 9... Bh5 {[%clk 0:02:49.9]} 10.
d3 {[%clk 0:02:49.4]} 10... O-O {[%clk 0:02:47.8]} 11. Nbd2 {[%clk 0:02:46.6]}
11... b5 {[%clk 0:02:45.5]} 12. a4 {[%clk 0:02:44.3]} 12... a6 {[%clk
0:02:42.4]} 13. Nf1 {[%clk 0:02:35.7]} 13... Re8 {[%clk 0:02:40.3]} 14. Ne3
{[%clk 0:02:28.6]} 14... Bf8 {[%clk 0:02:40.4]} 15. Qc2 {[%clk 0:02:27.7]} 15...
Rb8 {[%clk 0:02:31.2]} 16. axb5 {[%clk 0:02:21.4]} 16... axb5 {[%clk 0:02:32.1]}
17. Re1 {[%clk 0:02:12.4]} 17... h6 {[%clk 0:02:27.8]} 18. Nh4 {[%clk
0:02:04.3]} 18... Nd7 {[%clk 0:02:21.7]} 19. Nef5 {[%clk 0:01:54.8]} 19... Qc7
{[%clk 0:01:52.6]} 20. g4 {[%clk 0:01:49.5]} 20... Bg6 {[%clk 0:01:52.6]} 21.
Nxg6 {[%clk 0:01:49.5]} 21... fxg6 {[%clk 0:01:53.5]} 22. Ne3 {[%clk 0:01:50.1]}
22... Nb6 {[%clk 0:01:51.5]} 23. Qb3+ {[%clk 0:01:30.4]} 23... Kh7 {[%clk
0:01:30]} 24. Qxb5 {[%clk 0:01:18.6]} 24... Be7 {[%clk 0:01:30.4]} 25. Qb3
{[%clk 0:01:17.9]} 25... Bh4 {[%clk 0:01:27.9]} 26. Qc2 {[%clk 0:01:03.7]} 26...
Rf8 {[%clk 0:01:27]} 27. Rf1 {[%clk 0:01:04.1]} 27... Qf7 {[%clk 0:01:23.6]} 28.
Nd5 {[%clk 0:00:59.4]} 28... Nxd5 {[%clk 0:01:22.2]} 29. exd5 {[%clk 0:01:00.3]}
29... Ne7 {[%clk 0:01:22.9]} 30. f4 {[%clk 0:01:00.7]} 30... Nxd5 {[%clk
0:01:13.7]} 31. fxe5 {[%clk 0:00:56]} 31... Qe6 {[%clk 0:01:14.1]} 32. d4 {[%clk
0:00:26]} 32... cxd4 {[%clk 0:01:11.9]} 33. cxd4 {[%clk 0:00:25.4]} 33... Rxf1+
{[%clk 0:00:56.3]} 34. Bxf1 {[%clk 0:00:24.7]} 34... dxe5 {[%clk 0:00:56.8]} 35.
dxe5 {[%clk 0:00:17.7]} 35... Qxe5 {[%clk 0:00:55.2]} 36. Ra4 {[%clk 0:00:10.1]}
36... Ne3 {[%clk 0:00:48.9]} 37. Qe2 {[%clk 0:00:04.4]} 37... Qg3+ {[%clk
0:00:42.5]} 38. Kh1 {[%clk 0:00:04.6]} 38... Re8 {[%clk 0:00:10]} 39. Bd2 {[%clk
0:00:05.1]} 39... Qd6 {[%clk 0:00:05.4]} 40. Ra3 {[%clk 0:00:02.5]} 40... Nxf1
{[%clk 0:00:04]} 41. Qxf1 {[%clk 0:00:02.4]} 41... Qxd2 {[%clk 0:00:04.1]} 0-1

[Event "Early-Titled-Tuesday-Blitz-February-20-2024"]
[Site "Chess.com"]
[Date "2024.02.20"]
[Round "4"]
[White "Chessmissile07"]
[Black "NovoselovRoman"]
[Result "1-0"]
[WhiteElo "2884"]
[BlackElo "2540"]
[TimeControl "180+1"]
[EndTime "8:39:45 PST"]
[Termination "Chessmissile07 won on time"]

1. a3 {[%clk 0:03:00.9]} 1... e6 {[%clk 0:02:59.6]} 2. c4 {[%clk 0:02:56.8]}
2... d5 {[%clk 0:03:00.5]} 3. g3 {[%clk 0:02:52.2]} 3... Nf6 {[%clk 0:03:00.9]}
4. Bg2 {[%clk 0:02:52.2]} 4... Be7 {[%clk 0:03:01.5]} 5. Nf3 {[%clk 0:02:52]}
5... O-O {[%clk 0:03:02.1]} 6. cxd5 {[%clk 0:02:44.3]} 6... exd5 {[%clk
0:03:03]} 7. O-O {[%clk 0:02:43.6]} 7... Nc6 {[%clk 0:03:00.8]} 8. b4 {[%clk
0:02:41.6]} 8... Bg4 {[%clk 0:02:56.1]} 9. Bb2 {[%clk 0:02:41]} 9... Qd7 {[%clk
0:02:56.5]} 10. b5 {[%clk 0:02:33.6]} 10... Na5 {[%clk 0:02:55.9]} 11. Qa4
{[%clk 0:02:22.2]} 11... Nc4 {[%clk 0:02:46.1]} 12. Qb3 {[%clk 0:02:21.9]} 12...
Bh3 {[%clk 0:02:34.3]} 13. d3 {[%clk 0:02:20.8]} 13... Bxg2 {[%clk 0:02:29.8]}
14. Kxg2 {[%clk 0:02:20.1]} 14... Nxb2 {[%clk 0:02:29.7]} 15. Qxb2 {[%clk
0:02:21]} 15... Rfe8 {[%clk 0:02:26.3]} 16. Nbd2 {[%clk 0:02:09.5]} 16... Bd6
{[%clk 0:02:25.8]} 17. Rfe1 {[%clk 0:02:06.2]} 17... Qf5 {[%clk 0:01:52.6]} 18.
a4 {[%clk 0:01:49.2]} 18... Re7 {[%clk 0:01:45.5]} 19. Nb3 {[%clk 0:01:39.2]}
19... Rae8 {[%clk 0:01:40.7]} 20. Rac1 {[%clk 0:01:27.7]} 20... h5 {[%clk
0:01:36.5]} 21. h4 {[%clk 0:01:23.2]} 21... Ng4 {[%clk 0:01:34.1]} 22. Qd2
{[%clk 0:01:10.2]} 22... g6 {[%clk 0:00:36.2]} 23. Nbd4 {[%clk 0:01:05.4]} 23...
Qd7 {[%clk 0:00:31.7]} 24. Nh2 {[%clk 0:00:59.1]} 24... Nxh2 {[%clk 0:00:08.4]}
25. Kxh2 {[%clk 0:01:00]} 25... Qg4 {[%clk 0:00:08.7]} 26. Nf3 {[%clk
0:00:59.9]} 26... Qf5 {[%clk 0:00:04.1]} 27. Kg2 {[%clk 0:00:56.2]} 27... a6
{[%clk 0:00:04.6]} 28. bxa6 {[%clk 0:00:55.4]} 28... bxa6 {[%clk 0:00:05.5]} 29.
Rc2 {[%clk 0:00:47.3]} 29... c5 {[%clk 0:00:05.4]} 30. Qg5 {[%clk 0:00:45.4]}
30... Qe6 {[%clk 0:00:04.1]} 31. e4 {[%clk 0:00:41.8]} 31... d4 {[%clk
0:00:03.4]} 32. Rb1 {[%clk 0:00:37.2]} 32... Qd7 {[%clk 0:00:02.2]} 33. Rc4
{[%clk 0:00:30.8]} 33... Qc6 {[%clk 0:00:02.3]} 34. Nxd4 {[%clk 0:00:29.8]}
34... Qd7 {[%clk 0:00:02.4]} 35. Nf3 {[%clk 0:00:29.5]} 35... Be5 {[%clk
0:00:03.1]} 36. Rb3 {[%clk 0:00:24.4]} 36... Bg7 {[%clk 0:00:02.7]} 37. Rxc5
{[%clk 0:00:21.6]} 37... Qxa4 {[%clk 0:00:02.6]} 38. Rb8 {[%clk 0:00:19.9]}
38... Rxb8 {[%clk 0:00:02]} 39. Qxe7 {[%clk 0:00:19.9]} 39... Qd1 {[%clk
0:00:02.3]} 40. Rc7 {[%clk 0:00:13]} 40... Rf8 {[%clk 0:00:02.8]} 41. Ng5 {[%clk
0:00:10.8]} 41... Qxd3 {[%clk 0:00:02.6]} 42. Nxf7 {[%clk 0:00:11.1]} 1-0

[Event "Early-Titled-Tuesday-Blitz-February-20-2024"]
[Site "Chess.com"]
[Date "2024.02.20"]
[Round "4"]
[White "Tocras"]
[Black "Sanan_Sjugirov"]
[Result "1/2-1/2"]
[WhiteElo "2715"]
[BlackElo "2907"]
[TimeControl "180+1"]
[EndTime "8:39:48 PST"]
[Termination "Game drawn by agreement"]

1. e4 {[%clk 0:02:57.7]} 1... c5 {[%clk 0:02:59.4]} 2. Nc3 {[%clk 0:02:53.9]}
2... Nc6 {[%clk 0:02:59.4]} 3. Bb5 {[%clk 0:02:53.2]} 3... Nd4 {[%clk
0:02:58.7]} 4. Nf3 {[%clk 0:02:53.6]} 4... a6 {[%clk 0:02:56.7]} 5. Bd3 {[%clk
0:02:53.4]} 5... g6 {[%clk 0:02:56.5]} 6. O-O {[%clk 0:02:50.4]} 6... Bg7 {[%clk
0:02:56.3]} 7. Rb1 {[%clk 0:02:50.8]} 7... Nc6 {[%clk 0:02:55.6]} 8. a3 {[%clk
0:02:50.7]} 8... d6 {[%clk 0:02:50.2]} 9. b4 {[%clk 0:02:48.5]} 9... cxb4 {[%clk
0:02:47]} 10. axb4 {[%clk 0:02:48.3]} 10... b5 {[%clk 0:02:47.6]} 11. Nd5 {[%clk
0:02:39.4]} 11... Nf6 {[%clk 0:02:23.5]} 12. Bb2 {[%clk 0:02:37]} 12... O-O
{[%clk 0:02:23.9]} 13. Bxf6 {[%clk 0:02:23]} 13... Bxf6 {[%clk 0:02:18.8]} 14.
Nxf6+ {[%clk 0:02:21.1]} 14... exf6 {[%clk 0:02:19.7]} 15. c3 {[%clk 0:02:06.7]}
15... d5 {[%clk 0:02:08.6]} 16. exd5 {[%clk 0:02:02.1]} 16... Qxd5 {[%clk
0:02:09.5]} 17. Qc2 {[%clk 0:02:01.2]} 17... Qd6 {[%clk 0:01:47.8]} 18. Be4
{[%clk 0:01:52.2]} 18... Bb7 {[%clk 0:01:47.8]} 19. Rfe1 {[%clk 0:01:47.1]}
19... f5 {[%clk 0:01:39.7]} 20. Bxc6 {[%clk 0:01:37.9]} 20... Bxc6 {[%clk
0:01:40.6]} 21. Nd4 {[%clk 0:01:34.6]} 21... Bb7 {[%clk 0:01:17.4]} 22. f3
{[%clk 0:01:26.2]} 22... Rac8 {[%clk 0:01:15.3]} 23. Qd3 {[%clk 0:00:59.4]}
23... Rfd8 {[%clk 0:01:09.3]} 24. Qe3 {[%clk 0:00:56.9]} 24... Rd7 {[%clk
0:00:58]} 25. Qe5 {[%clk 0:00:55.9]} 25... Qb6 {[%clk 0:00:57.4]} 26. h4 {[%clk
0:00:49.7]} 26... Bd5 {[%clk 0:00:47.4]} 27. Re3 {[%clk 0:00:43.3]} 27... f6
{[%clk 0:00:31]} 28. Qf4 {[%clk 0:00:40.9]} 28... Qc7 {[%clk 0:00:23.7]} 29.
Qxc7 {[%clk 0:00:37.1]} 29... Rdxc7 {[%clk 0:00:24.6]} 30. Rbe1 {[%clk
0:00:37.1]} 30... Kf7 {[%clk 0:00:24.3]} 31. Kf2 {[%clk 0:00:35.4]} 31... f4
{[%clk 0:00:22.6]} 32. R3e2 {[%clk 0:00:31.9]} 32... h6 {[%clk 0:00:19.6]} 33.
Ne6 {[%clk 0:00:28.6]} 33... Bxe6 {[%clk 0:00:13.2]} 34. Rxe6 {[%clk 0:00:29.5]}
34... Rd8 {[%clk 0:00:12.4]} 35. Rxa6 {[%clk 0:00:18.3]} 35... Rxd2+ {[%clk
0:00:11.9]} 36. Kg1 {[%clk 0:00:18.9]} 36... Re7 {[%clk 0:00:05.4]} 37. Rxe7+
{[%clk 0:00:11.1]} 37... Kxe7 {[%clk 0:00:06.3]} 38. Rb6 {[%clk 0:00:11.2]}
38... Rc2 {[%clk 0:00:06.5]} 39. Rxb5 {[%clk 0:00:10.4]} 39... Rxc3 {[%clk
0:00:06.9]} 40. Kh2 {[%clk 0:00:09]} 40... Ke6 {[%clk 0:00:06.2]} 41. Rb8 {[%clk
0:00:07]} 41... Rb3 {[%clk 0:00:05.8]} 42. b5 {[%clk 0:00:07.3]} 42... Kf5
{[%clk 0:00:05.9]} 43. b6 {[%clk 0:00:06.2]} 43... h5 {[%clk 0:00:05.3]} 44. Kg1
{[%clk 0:00:06.2]} 44... Rb2 {[%clk 0:00:04.8]} 45. Kf1 {[%clk 0:00:06.4]}
1/2-1/2